[Event "Late-Titled-Tuesday-Blitz-April-23-2024"]
[Site "Chess.com"]
[Date "2024.04.23"]
[Round "3"]
[White "Statham_01"]
[Black "zano2023"]
[Result "1-0"]
[WhiteElo "2553"]
[BlackElo "2169"]
[TimeControl "180+1"]
[EndTime "14:29:28 PDT"]
[Termination "Statham_01 won by resignation"]

1. e4 {[%clk 0:03:00.9]} 1... e5 {[%clk 0:02:59.5]} 2. Nf3 {[%clk 0:03:00.8]}
2... d6 {[%clk 0:03:00]} 3. d4 {[%clk 0:02:56.5]} 3... f5 {[%clk 0:02:59.4]} 4.
dxe5 {[%clk 0:02:23.3]} 4... fxe4 {[%clk 0:02:57.4]} 5. Ng5 {[%clk 0:02:22.5]}
5... d5 {[%clk 0:02:57.5]} 6. c4 {[%clk 0:02:13.3]} 6... Bb4+ {[%clk 0:02:55.9]}
7. Nc3 {[%clk 0:01:57.1]} 7... d4 {[%clk 0:02:55.3]} 8. a3 {[%clk 0:01:56.2]}
8... Bxc3+ {[%clk 0:02:53.2]} 9. bxc3 {[%clk 0:01:55.8]} 9... e3 {[%clk
0:02:53.9]} 10. Nf3 {[%clk 0:01:48.5]} 10... exf2+ {[%clk 0:02:51.7]} 11. Kxf2
{[%clk 0:01:49.4]} 11... dxc3 {[%clk 0:02:40.2]} 12. Qxd8+ {[%clk 0:01:49]}
12... Kxd8 {[%clk 0:02:39.9]} 13. a4 {[%clk 0:01:40.6]} 13... Nc6 {[%clk
0:02:36.1]} 14. Ba3 {[%clk 0:01:37.3]} 14... Nge7 {[%clk 0:02:27.8]} 15. Be2
{[%clk 0:01:34.2]} 15... h6 {[%clk 0:02:16.2]} 16. Rhd1+ {[%clk 0:01:29.9]}
16... Ke8 {[%clk 0:02:15.5]} 17. Rac1 {[%clk 0:01:28.2]} 17... Be6 {[%clk
0:02:04.8]} 18. Rxc3 {[%clk 0:01:26.9]} 18... Rd8 {[%clk 0:02:04.1]} 19. Rb1
{[%clk 0:01:22.2]} 19... b6 {[%clk 0:02:03.3]} 20. h3 {[%clk 0:01:18.5]} 20...
Nd4 {[%clk 0:01:58.1]} 21. Rd1 {[%clk 0:01:09.5]} 21... Nxf3 {[%clk 0:01:40.6]}
22. Rxd8+ {[%clk 0:01:10.4]} 22... Kxd8 {[%clk 0:01:39.1]} 23. Bxf3 {[%clk
0:01:11.3]} 23... Nf5 {[%clk 0:01:22.6]} 24. c5 {[%clk 0:01:05.5]} 24... Ne7
{[%clk 0:00:59.2]} 25. c6 {[%clk 0:00:58.5]} 25... g6 {[%clk 0:00:45.7]} 26. a5
{[%clk 0:00:55.1]} 26... Rf8 {[%clk 0:00:39.9]} 27. Bc1 {[%clk 0:00:49.4]} 27...
g5 {[%clk 0:00:36.3]} 28. axb6 {[%clk 0:00:47.6]} 28... axb6 {[%clk 0:00:36.4]}
29. Ra3 {[%clk 0:00:45]} 29... Bd5 {[%clk 0:00:34.9]} 30. Ra8+ {[%clk
0:00:33.5]} 30... Nc8 {[%clk 0:00:35]} 31. Ba3 {[%clk 0:00:31.8]} 31... Rf7
{[%clk 0:00:31.5]} 32. Kg3 {[%clk 0:00:25.6]} 32... Bxf3 {[%clk 0:00:31.1]} 33.
e6 {[%clk 0:00:25.9]} 33... Rh7 {[%clk 0:00:16.5]} 34. gxf3 {[%clk 0:00:17.3]}
1-0

[Event "Late-Titled-Tuesday-Blitz-April-23-2024"]
[Site "Chess.com"]
[Date "2024.04.23"]
[Round "3"]
[White "dasatcu90"]
[Black "Der_Balak_3Halak"]
[Result "0-1"]
[WhiteElo "2194"]
[BlackElo "2427"]
[TimeControl "180+1"]
[EndTime "14:29:29 PDT"]
[Termination "Der_Balak_3Halak won by resignation"]

1. d4 {[%clk 0:03:00.9]} 1... d5 {[%clk 0:03:00.1]} 2. Nf3 {[%clk 0:03:00.7]}
2... Nf6 {[%clk 0:02:59.8]} 3. e3 {[%clk 0:03:00.6]} 3... c6 {[%clk 0:02:58.9]}
4. Bd3 {[%clk 0:02:52.6]} 4... e6 {[%clk 0:02:58.2]} 5. Nbd2 {[%clk 0:02:48.2]}
5... Bd6 {[%clk 0:02:58.3]} 6. O-O {[%clk 0:02:46.5]} 6... Nbd7 {[%clk
0:02:57.5]} 7. e4 {[%clk 0:02:42.7]} 7... dxe4 {[%clk 0:02:57.3]} 8. Nxe4 {[%clk
0:02:43.6]} 8... Nxe4 {[%clk 0:02:57.5]} 9. Bxe4 {[%clk 0:02:44.5]} 9... Nf6
{[%clk 0:02:53.7]} 10. Bd3 {[%clk 0:02:45.1]} 10... h6 {[%clk 0:02:53.2]} 11.
Re1 {[%clk 0:02:43]} 11... b6 {[%clk 0:02:43.7]} 12. Ne5 {[%clk 0:02:31.5]}
12... Bb7 {[%clk 0:02:43.6]} 13. Qf3 {[%clk 0:02:19.4]} 13... Qc7 {[%clk
0:02:40.4]} 14. Qg3 {[%clk 0:01:54.2]} 14... g5 {[%clk 0:02:23.7]} 15. Qf3
{[%clk 0:01:45.3]} 15... Ng8 {[%clk 0:01:31.5]} 16. Be4 {[%clk 0:01:32.9]} 16...
Bxe5 {[%clk 0:01:28.6]} 17. dxe5 {[%clk 0:01:33.8]} 17... O-O-O {[%clk
0:01:28.9]} 18. Be3 {[%clk 0:01:21.6]} 18... c5 {[%clk 0:01:29]} 19. Rad1 {[%clk
0:00:58.1]} 19... Rxd1 {[%clk 0:01:02.5]} 20. Rxd1 {[%clk 0:00:57.7]} 20... Bxe4
{[%clk 0:00:59.4]} 21. Qxe4 {[%clk 0:00:58.6]} 21... Ne7 {[%clk 0:00:59.5]} 22.
c4 {[%clk 0:00:35.4]} 22... Qc6 {[%clk 0:00:52.1]} 23. Qd3 {[%clk 0:00:25.5]}
23... Nf5 {[%clk 0:00:43.9]} 24. f3 {[%clk 0:00:06.2]} 24... Rg8 {[%clk
0:00:36.9]} 25. Kf2 {[%clk 0:00:05.6]} 25... h5 {[%clk 0:00:21]} 26. g4 {[%clk
0:00:05.5]} 26... hxg4 {[%clk 0:00:20.7]} 27. fxg4 {[%clk 0:00:06.4]} 27... Nh4
{[%clk 0:00:19.6]} 28. Qd6 {[%clk 0:00:05.1]} 28... Qf3+ {[%clk 0:00:19.3]} 29.
Ke1 {[%clk 0:00:05.5]} 29... Ng2+ {[%clk 0:00:18.9]} 30. Kd2 {[%clk 0:00:05.5]}
30... Rd8 {[%clk 0:00:18.5]} 31. Qxd8+ {[%clk 0:00:05]} 31... Kxd8 {[%clk
0:00:19.4]} 32. Kc2+ {[%clk 0:00:04.2]} 32... Qxd1+ {[%clk 0:00:19.8]} 33. Kxd1
{[%clk 0:00:04]} 33... Nxe3+ {[%clk 0:00:20.7]} 34. Ke2 {[%clk 0:00:04.8]} 34...
Nxg4 {[%clk 0:00:21.1]} 35. h3 {[%clk 0:00:04.5]} 35... Nxe5 {[%clk 0:00:22]}
36. Ke3 {[%clk 0:00:04.8]} 36... Nxc4+ {[%clk 0:00:21.8]} 37. Ke4 {[%clk
0:00:05.7]} 37... Nxb2 {[%clk 0:00:22.5]} 0-1

[Event "Late-Titled-Tuesday-Blitz-April-23-2024"]
[Site "Chess.com"]
[Date "2024.04.23"]
[Round "3"]
[White "only_strong_moves"]
[Black "dretch"]
[Result "0-1"]
[WhiteElo "2710"]
[BlackElo "2918"]
[TimeControl "180+1"]
[EndTime "14:29:33 PDT"]
[Termination "dretch won by resignation"]

1. d4 {[%clk 0:03:00.9]} 1... d5 {[%clk 0:03:00]} 2. c4 {[%clk 0:02:59.9]} 2...
c6 {[%clk 0:02:59]} 3. Nc3 {[%clk 0:02:59.9]} 3... dxc4 {[%clk 0:02:58.9]} 4. e3
{[%clk 0:02:58.2]} 4... b5 {[%clk 0:02:58.8]} 5. a4 {[%clk 0:02:58.8]} 5... b4
{[%clk 0:02:59.1]} 6. Ne4 {[%clk 0:02:59.4]} 6... Qd5 {[%clk 0:02:57.6]} 7. Nd2
{[%clk 0:02:59.4]} 7... c3 {[%clk 0:02:57.8]} 8. bxc3 {[%clk 0:03:00.3]} 8...
bxc3 {[%clk 0:02:58.3]} 9. Nb1 {[%clk 0:03:01]} 9... Qa5 {[%clk 0:02:58.1]} 10.
Qc2 {[%clk 0:03:01]} 10... e6 {[%clk 0:02:47.9]} 11. Nxc3 {[%clk 0:03:00]} 11...
Nf6 {[%clk 0:02:45.7]} 12. Bd3 {[%clk 0:02:59.3]} 12... Na6 {[%clk 0:02:45.2]}
13. Bc4 {[%clk 0:02:02.1]} 13... Nb4 {[%clk 0:02:39.2]} 14. Qd2 {[%clk
0:02:00.2]} 14... Ba6 {[%clk 0:02:26.9]} 15. Bxa6 {[%clk 0:01:59.4]} 15... Qxa6
{[%clk 0:02:26.9]} 16. Nge2 {[%clk 0:01:54.5]} 16... Nd3+ {[%clk 0:02:26.7]} 17.
Kf1 {[%clk 0:01:54.9]} 17... Bb4 {[%clk 0:02:15.6]} 18. Ba3 {[%clk 0:01:51.3]}
18... Ne4 {[%clk 0:02:13.2]} 19. Nxe4 {[%clk 0:01:36.9]} 19... Bxd2 {[%clk
0:02:11.9]} 20. Nxd2 {[%clk 0:01:37.8]} 20... c5 {[%clk 0:02:02.5]} 21. dxc5
{[%clk 0:01:29.3]} 21... O-O {[%clk 0:02:01.3]} 22. g3 {[%clk 0:01:28.2]} 22...
Nxc5 {[%clk 0:01:52.3]} 23. Bxc5 {[%clk 0:01:21]} 23... Qc6 {[%clk 0:01:51.8]}
24. Bxf8 {[%clk 0:01:18.4]} 24... Qxh1+ {[%clk 0:01:51.6]} 25. Ng1 {[%clk
0:01:19.1]} 25... Rxf8 {[%clk 0:01:34.4]} 26. Nf3 {[%clk 0:01:19.5]} 26... e5
{[%clk 0:01:34.9]} 27. e4 {[%clk 0:01:17.6]} 27... f5 {[%clk 0:01:34.3]} 28. Re1
{[%clk 0:00:52.6]} 28... fxe4 {[%clk 0:01:31.4]} 29. Ng5 {[%clk 0:00:45]} 29...
Qxh2 {[%clk 0:01:25.8]} 30. Nxe4 {[%clk 0:00:45.6]} 30... h6 {[%clk 0:01:23.3]}
31. Re3 {[%clk 0:00:43.3]} 31... Qh5 {[%clk 0:01:21.4]} 32. Kg2 {[%clk
0:00:40.2]} 32... Qd1 {[%clk 0:01:21.1]} 33. Nc3 {[%clk 0:00:35.3]} 33... Qc2
{[%clk 0:01:14.1]} 34. Nf3 {[%clk 0:00:35.8]} 34... e4 {[%clk 0:01:11]} 35. Nxe4
{[%clk 0:00:34.2]} 35... Qxa4 {[%clk 0:01:10.8]} 36. Nc5 {[%clk 0:00:30.6]}
36... Qc6 {[%clk 0:01:08.9]} 37. Ne6 {[%clk 0:00:31.1]} 37... Re8 {[%clk
0:01:00.7]} 38. Nd4 {[%clk 0:00:30.9]} 38... Qd7 {[%clk 0:01:00.7]} 39. Ra3
{[%clk 0:00:29.5]} 39... Ra8 {[%clk 0:00:56.3]} 40. Ra6 {[%clk 0:00:29.5]} 40...
Qb7 {[%clk 0:00:55.8]} 41. Ra5 {[%clk 0:00:29.7]} 41... a6 {[%clk 0:00:54.5]}
42. Kg1 {[%clk 0:00:28.6]} 42... Qb6 {[%clk 0:00:53.5]} 43. Ra3 {[%clk
0:00:27.5]} 43... a5 {[%clk 0:00:53.8]} 44. Nc2 {[%clk 0:00:21.7]} 44... a4
{[%clk 0:00:52.2]} 45. Nfe1 {[%clk 0:00:21.4]} 45... Qb5 {[%clk 0:00:49.6]} 46.
Kg2 {[%clk 0:00:19.7]} 46... Re8 {[%clk 0:00:47.8]} 47. Kg1 {[%clk 0:00:14.1]}
47... Qc4 {[%clk 0:00:44.7]} 48. Kg2 {[%clk 0:00:14.1]} 48... Qe4+ {[%clk
0:00:42]} 49. Kg1 {[%clk 0:00:14]} 49... Rb8 {[%clk 0:00:42]} 50. f3 {[%clk
0:00:10.6]} 50... Qc4 {[%clk 0:00:40.9]} 51. Kf2 {[%clk 0:00:10.1]} 51... Rb2
{[%clk 0:00:39.6]} 0-1

[Event "Late-Titled-Tuesday-Blitz-April-23-2024"]
[Site "Chess.com"]
[Date "2024.04.23"]
[Round "3"]
[White "Flaccidmoves"]
[Black "BenchGM"]
[Result "0-1"]
[WhiteElo "2427"]
[BlackElo "2240"]
[TimeControl "180+1"]
[EndTime "14:29:38 PDT"]
[Termination "BenchGM won by resignation"]

1. d4 {[%clk 0:03:00.9]} 1... Nf6 {[%clk 0:02:59.6]} 2. c4 {[%clk 0:03:00.7]}
2... e6 {[%clk 0:02:59.6]} 3. Nf3 {[%clk 0:02:58.8]} 3... d5 {[%clk 0:02:57.5]}
4. Nc3 {[%clk 0:02:55.9]} 4... c5 {[%clk 0:02:52.9]} 5. cxd5 {[%clk 0:02:54]}
5... Nxd5 {[%clk 0:02:51.9]} 6. e4 {[%clk 0:02:50.2]} 6... Nxc3 {[%clk
0:02:51.2]} 7. bxc3 {[%clk 0:02:51.1]} 7... cxd4 {[%clk 0:02:44.2]} 8. cxd4
{[%clk 0:02:52]} 8... Bb4+ {[%clk 0:02:43.7]} 9. Bd2 {[%clk 0:02:52.6]} 9...
Bxd2+ {[%clk 0:02:42.7]} 10. Qxd2 {[%clk 0:02:53.2]} 10... O-O {[%clk
0:02:27.7]} 11. Bd3 {[%clk 0:02:50.9]} 11... Nc6 {[%clk 0:02:17.7]} 12. Bc4
{[%clk 0:02:14.1]} 12... Na5 {[%clk 0:01:41.1]} 13. Be2 {[%clk 0:02:00.4]} 13...
Bd7 {[%clk 0:01:37.5]} 14. O-O {[%clk 0:01:57.4]} 14... Rc8 {[%clk 0:01:36.9]}
15. Rfc1 {[%clk 0:01:36.3]} 15... Bc6 {[%clk 0:01:07.9]} 16. Qf4 {[%clk
0:01:21]} 16... f5 {[%clk 0:00:44]} 17. exf5 {[%clk 0:00:55.5]} 17... Rxf5
{[%clk 0:00:40.8]} 18. Qe3 {[%clk 0:00:55.1]} 18... Qf6 {[%clk 0:00:36.3]} 19.
Ne5 {[%clk 0:00:44.1]} 19... Rf8 {[%clk 0:00:35.8]} 20. f3 {[%clk 0:00:38.3]}
20... Bd5 {[%clk 0:00:30.1]} 21. Nd7 {[%clk 0:00:35.8]} 21... Qh4 {[%clk
0:00:12.4]} 22. Nxf8 {[%clk 0:00:34.9]} 22... Rh5 {[%clk 0:00:11.5]} 23. h3
{[%clk 0:00:24.3]} 23... Kxf8 {[%clk 0:00:11.1]} 24. Rc8+ {[%clk 0:00:23.9]}
24... Kf7 {[%clk 0:00:10.5]} 25. Rac1 {[%clk 0:00:23.8]} 25... Nc6 {[%clk
0:00:09.9]} 26. Rc7+ {[%clk 0:00:20.8]} 26... Kf6 {[%clk 0:00:09.5]} 27. Rxb7
{[%clk 0:00:19.8]} 27... Qg3 {[%clk 0:00:08.8]} 28. Qf2 {[%clk 0:00:16.5]} 28...
Qf4 {[%clk 0:00:08.6]} 29. Bb5 {[%clk 0:00:15.2]} 29... Qxc1+ {[%clk 0:00:08]}
30. Kh2 {[%clk 0:00:12.5]} 30... Qf4+ {[%clk 0:00:07.9]} 31. Qg3 {[%clk
0:00:12.8]} 31... Qxg3+ {[%clk 0:00:05.9]} 32. Kxg3 {[%clk 0:00:13.7]} 32...
Nxd4 {[%clk 0:00:05.7]} 33. Bd3 {[%clk 0:00:12.7]} 33... Bxb7 {[%clk 0:00:05.2]}
0-1

[Event "Late-Titled-Tuesday-Blitz-April-23-2024"]
[Site "Chess.com"]
[Date "2024.04.23"]
[Round "3"]
[White "Mindhunter08"]
[Black "VojtechPlat"]
[Result "0-1"]
[WhiteElo "2592"]
[BlackElo "2861"]
[TimeControl "180+1"]
[EndTime "14:29:42 PDT"]
[Termination "VojtechPlat won by resignation"]

1. e4 {[%clk 0:03:00.9]} 1... d6 {[%clk 0:03:00.7]} 2. d4 {[%clk 0:02:59.8]}
2... Nf6 {[%clk 0:03:01.3]} 3. Nc3 {[%clk 0:02:59.9]} 3... e5 {[%clk 0:03:02]}
4. dxe5 {[%clk 0:02:51.1]} 4... dxe5 {[%clk 0:03:02]} 5. Qxd8+ {[%clk
0:02:51.2]} 5... Kxd8 {[%clk 0:03:02.9]} 6. Bc4 {[%clk 0:02:49.9]} 6... Be6
{[%clk 0:03:02.8]} 7. Bxe6 {[%clk 0:02:47.1]} 7... fxe6 {[%clk 0:03:03.7]} 8.
Nf3 {[%clk 0:02:47.3]} 8... Bd6 {[%clk 0:03:03.2]} 9. h3 {[%clk 0:02:43]} 9...
a6 {[%clk 0:03:02.8]} 10. a4 {[%clk 0:02:40.1]} 10... Nbd7 {[%clk 0:03:02.5]}
11. O-O {[%clk 0:02:38.3]} 11... Ke7 {[%clk 0:03:02.5]} 12. Bg5 {[%clk 0:02:26]}
12... h6 {[%clk 0:03:01.9]} 13. Bxf6+ {[%clk 0:02:17.6]} 13... gxf6 {[%clk
0:03:01.1]} 14. Ne2 {[%clk 0:01:52.4]} 14... h5 {[%clk 0:02:56.6]} 15. Nh4
{[%clk 0:01:47.5]} 15... Rag8 {[%clk 0:02:54.2]} 16. Ng3 {[%clk 0:01:44.9]}
16... Nf8 {[%clk 0:02:50.3]} 17. Kh2 {[%clk 0:01:35.7]} 17... Ng6 {[%clk
0:02:49.7]} 18. Nxg6+ {[%clk 0:01:29]} 18... Rxg6 {[%clk 0:02:49.5]} 19. h4
{[%clk 0:01:29.3]} 19... Rhg8 {[%clk 0:02:44.6]} 20. Rad1 {[%clk 0:01:28.1]}
20... Bc5 {[%clk 0:02:41.9]} 21. Rd3 {[%clk 0:01:28.3]} 21... Bd6 {[%clk
0:02:17.9]} 22. c3 {[%clk 0:01:27]} 22... a5 {[%clk 0:02:15.9]} 23. Rfd1 {[%clk
0:01:25.4]} 23... b6 {[%clk 0:02:11.9]} 24. b4 {[%clk 0:01:23.2]} 24... axb4
{[%clk 0:02:11.2]} 25. cxb4 {[%clk 0:01:23.6]} 25... Ra8 {[%clk 0:02:11]} 26.
Ra1 {[%clk 0:01:18]} 26... Bxb4 {[%clk 0:02:09.8]} 27. Nxh5 {[%clk 0:01:03.7]}
27... Rh8 {[%clk 0:02:08.2]} 28. g4 {[%clk 0:01:04.3]} 28... Rxg4 {[%clk
0:02:07.6]} 29. Rd7+ {[%clk 0:01:04.9]} 29... Kxd7 {[%clk 0:02:06.5]} 30. Nxf6+
{[%clk 0:01:05.4]} 30... Ke7 {[%clk 0:02:04.4]} 31. Nxg4 {[%clk 0:01:06.3]}
31... Rxh4+ {[%clk 0:02:04.3]} 32. Kg3 {[%clk 0:01:07.1]} 32... Rh8 {[%clk
0:02:04.2]} 33. Kg2 {[%clk 0:00:54.4]} 33... Bd6 {[%clk 0:01:58.9]} 34. a5
{[%clk 0:00:54.6]} 34... Ra8 {[%clk 0:01:55.7]} 35. a6 {[%clk 0:00:55]} 35... b5
{[%clk 0:01:56]} 36. Ne3 {[%clk 0:00:48.3]} 36... Bc5 {[%clk 0:01:55.6]} 37. Nc2
{[%clk 0:00:45.2]} 37... Kd6 {[%clk 0:01:54.6]} 38. Ne1 {[%clk 0:00:39.2]} 38...
Bd4 {[%clk 0:01:53.9]} 39. Ra2 {[%clk 0:00:36]} 39... c5 {[%clk 0:01:52.9]} 40.
Nd3 {[%clk 0:00:32.2]} 40... c4 {[%clk 0:01:53]} 41. Nb4 {[%clk 0:00:32]} 41...
Kc5 {[%clk 0:01:53.2]} 42. Nc2 {[%clk 0:00:32.5]} 42... Kb6 {[%clk 0:01:52.8]}
43. f4 {[%clk 0:00:32.6]} 43... Bc5 {[%clk 0:01:49.2]} 44. f5 {[%clk 0:00:26.9]}
44... exf5 {[%clk 0:01:49.1]} 45. exf5 {[%clk 0:00:27.8]} 45... b4 {[%clk
0:01:49.1]} 46. Kf3 {[%clk 0:00:24.9]} 46... b3 {[%clk 0:01:48.9]} 47. Rb2
{[%clk 0:00:25.4]} 47... Kxa6 {[%clk 0:01:46.7]} 48. Ne1 {[%clk 0:00:19.1]}
48... Kb5 {[%clk 0:01:46.4]} 49. Ke4 {[%clk 0:00:19.6]} 49... Bd4 {[%clk
0:01:44.4]} 50. Rb1 {[%clk 0:00:20.2]} 50... Kc5 {[%clk 0:01:39.6]} 51. Nf3
{[%clk 0:00:18.3]} 51... b2 {[%clk 0:01:35.9]} 52. Nxd4 {[%clk 0:00:08.8]} 52...
exd4 {[%clk 0:01:36.1]} 53. Rxb2 {[%clk 0:00:09.4]} 53... Re8+ {[%clk
0:01:36.5]} 54. Kf4 {[%clk 0:00:09.3]} 54... d3 {[%clk 0:01:36.6]} 55. f6 {[%clk
0:00:08.1]} 55... Rf8 {[%clk 0:01:34.2]} 56. Kf5 {[%clk 0:00:08.2]} 56... c3
{[%clk 0:01:34]} 57. Rb7 {[%clk 0:00:07.3]} 57... d2 {[%clk 0:01:33.4]} 58. Rd7
{[%clk 0:00:03.3]} 58... c2 {[%clk 0:01:32.7]} 59. Rc7+ {[%clk 0:00:02.3]} 59...
Kb6 {[%clk 0:01:32.5]} 60. Rxc2 {[%clk 0:00:01.9]} 60... d1=Q {[%clk 0:01:32.1]}
61. Rb2+ {[%clk 0:00:02.8]} 61... Kc6 {[%clk 0:01:32.1]} 62. Rb8 {[%clk
0:00:01.9]} 62... Rxb8 {[%clk 0:01:30.5]} 63. Kg6 {[%clk 0:00:02.2]} 63... Qg4+
{[%clk 0:01:29.8]} 64. Kh7 {[%clk 0:00:02]} 64... Qf5+ {[%clk 0:01:28.7]} 65.
Kg7 {[%clk 0:00:02.9]} 65... Rb7+ {[%clk 0:01:28.7]} 66. f7 {[%clk 0:00:03.8]}
66... Qxf7+ {[%clk 0:01:28.2]} 0-1

[Event "Late-Titled-Tuesday-Blitz-April-23-2024"]
[Site "Chess.com"]
[Date "2024.04.23"]
[Round "3"]
[White "jinbojinbo"]
[Black "ccccvhhhj"]
[Result "0-1"]
[WhiteElo "2637"]
[BlackElo "2483"]
[TimeControl "180+1"]
[EndTime "14:29:43 PDT"]
[Termination "ccccvhhhj won on time"]

1. c4 {[%clk 0:03:00.9]} 1... e5 {[%clk 0:02:58.1]} 2. Nc3 {[%clk 0:02:59.5]}
2... Nf6 {[%clk 0:02:57.9]} 3. Nf3 {[%clk 0:02:59.1]} 3... e4 {[%clk 0:02:55.9]}
4. Ng5 {[%clk 0:02:58.8]} 4... c6 {[%clk 0:02:49.3]} 5. Ngxe4 {[%clk 0:02:56.7]}
5... Nxe4 {[%clk 0:02:46.7]} 6. Nxe4 {[%clk 0:02:56.3]} 6... d5 {[%clk
0:02:46.8]} 7. Ng3 {[%clk 0:02:52.6]} 7... h5 {[%clk 0:02:46.1]} 8. h4 {[%clk
0:02:46.4]} 8... Bd6 {[%clk 0:02:31.4]} 9. d3 {[%clk 0:02:38.9]} 9... Qc7 {[%clk
0:02:15.7]} 10. Be3 {[%clk 0:02:25.1]} 10... Bb4+ {[%clk 0:02:07.9]} 11. Bd2
{[%clk 0:02:23.3]} 11... Bd6 {[%clk 0:02:08.8]} 12. Bc3 {[%clk 0:02:00.5]} 12...
Bxg3 {[%clk 0:02:06.6]} 13. fxg3 {[%clk 0:02:01.4]} 13... Qxg3+ {[%clk
0:02:07.2]} 14. Kd2 {[%clk 0:02:01.6]} 14... dxc4 {[%clk 0:01:37.5]} 15. Qe1
{[%clk 0:02:01]} 15... Qg6 {[%clk 0:01:32.6]} 16. Rd1 {[%clk 0:01:36.6]} 16...
O-O {[%clk 0:01:29.9]} 17. Kc1 {[%clk 0:01:35.6]} 17... cxd3 {[%clk 0:01:29]}
18. Rxd3 {[%clk 0:01:35]} 18... Bg4 {[%clk 0:01:23.6]} 19. e4 {[%clk 0:01:28.3]}
19... Na6 {[%clk 0:01:21.1]} 20. Re3 {[%clk 0:01:21.6]} 20... Nc5 {[%clk
0:01:16.1]} 21. Bb4 {[%clk 0:00:59.3]} 21... b6 {[%clk 0:01:16.1]} 22. Bc4
{[%clk 0:00:58.7]} 22... a5 {[%clk 0:00:54.2]} 23. Bxc5 {[%clk 0:00:45.5]} 23...
bxc5 {[%clk 0:00:55.1]} 24. Qc3 {[%clk 0:00:44.4]} 24... Rad8 {[%clk 0:00:48.5]}
25. a3 {[%clk 0:00:39.2]} 25... Rd4 {[%clk 0:00:48.9]} 26. Rhe1 {[%clk
0:00:37.3]} 26... Rfd8 {[%clk 0:00:43.7]} 27. Bb3 {[%clk 0:00:30.9]} 27... Be6
{[%clk 0:00:38.9]} 28. Bxe6 {[%clk 0:00:18.3]} 28... Qxe6 {[%clk 0:00:39]} 29.
Kc2 {[%clk 0:00:07.7]} 29... Qd6 {[%clk 0:00:38]} 30. R3e2 {[%clk 0:00:07.2]}
30... a4 {[%clk 0:00:37.8]} 31. e5 {[%clk 0:00:04.4]} 31... Qg6+ {[%clk
0:00:37.8]} 32. Kc1 {[%clk 0:00:04.2]} 32... Qe6 {[%clk 0:00:36.2]} 33. Kb1
{[%clk 0:00:03.1]} 33... Qd5 {[%clk 0:00:33.9]} 34. e6 {[%clk 0:00:02.1]} 34...
fxe6 {[%clk 0:00:34]} 35. Rxe6 {[%clk 0:00:01.9]} 35... Rd1+ {[%clk 0:00:33.2]}
36. Kc2 {[%clk 0:00:02.1]} 36... Qf5+ {[%clk 0:00:28.3]} 37. R6e4 {[%clk
0:00:01.9]} 37... Rxe1 {[%clk 0:00:19.2]} 38. Qxe1 {[%clk 0:00:02.8]} 38... Rd4
{[%clk 0:00:19.5]} 0-1

[Event "Late-Titled-Tuesday-Blitz-April-23-2024"]
[Site "Chess.com"]
[Date "2024.04.23"]
[Round "3"]
[White "Romkachess"]
[Black "Bugcrusher"]
[Result "0-1"]
[WhiteElo "2658"]
[BlackElo "2505"]
[TimeControl "180+1"]
[EndTime "14:29:44 PDT"]
[Termination "Bugcrusher won by resignation"]

1. e4 {[%clk 0:03:00.9]} 1... e6 {[%clk 0:02:51.3]} 2. d4 {[%clk 0:02:50.9]}
2... d5 {[%clk 0:02:49.2]} 3. Nc3 {[%clk 0:02:49.7]} 3... Bb4 {[%clk 0:02:48.5]}
4. e5 {[%clk 0:02:45.7]} 4... c5 {[%clk 0:02:48.2]} 5. a3 {[%clk 0:02:44.9]}
5... Bxc3+ {[%clk 0:02:48.3]} 6. bxc3 {[%clk 0:02:44.4]} 6... Qa5 {[%clk
0:02:49.2]} 7. Bd2 {[%clk 0:02:38.8]} 7... Qa4 {[%clk 0:02:48.4]} 8. Nf3 {[%clk
0:02:36.6]} 8... b6 {[%clk 0:02:48]} 9. Bd3 {[%clk 0:02:23.8]} 9... Ba6 {[%clk
0:02:44.7]} 10. O-O {[%clk 0:02:22.1]} 10... Ne7 {[%clk 0:02:43.5]} 11. Ra2
{[%clk 0:02:08.8]} 11... Nbc6 {[%clk 0:02:42.9]} 12. Bxa6 {[%clk 0:02:04.3]}
12... Qxa6 {[%clk 0:02:41.5]} 13. Bg5 {[%clk 0:02:05]} 13... O-O {[%clk
0:02:34.8]} 14. h4 {[%clk 0:02:00]} 14... h6 {[%clk 0:02:31.8]} 15. Bf4 {[%clk
0:01:54.3]} 15... Rac8 {[%clk 0:02:27.4]} 16. Qc1 {[%clk 0:01:45.1]} 16... Kh7
{[%clk 0:02:22.3]} 17. Be3 {[%clk 0:01:33.3]} 17... Qc4 {[%clk 0:02:21.2]} 18.
Qa1 {[%clk 0:01:28.6]} 18... Nf5 {[%clk 0:02:15.6]} 19. h5 {[%clk 0:01:15.1]}
19... cxd4 {[%clk 0:02:01.6]} 20. cxd4 {[%clk 0:01:05.3]} 20... f6 {[%clk
0:01:52.4]} 21. exf6 {[%clk 0:01:04.7]} 21... Rxf6 {[%clk 0:01:52.3]} 22. c3
{[%clk 0:01:00.2]} 22... Nxe3 {[%clk 0:01:47.7]} 23. fxe3 {[%clk 0:01:00]} 23...
Rcf8 {[%clk 0:01:46.3]} 24. Qb1+ {[%clk 0:00:57.6]} 24... Kg8 {[%clk 0:01:44.2]}
25. e4 {[%clk 0:00:57.1]} 25... dxe4 {[%clk 0:01:40.5]} 26. Qxe4 {[%clk
0:00:26.1]} 26... Qxa2 {[%clk 0:01:38.6]} 27. Qxc6 {[%clk 0:00:25.2]} 27... Qxa3
{[%clk 0:01:34.6]} 28. Re1 {[%clk 0:00:25]} 28... Qa2 {[%clk 0:01:18.9]} 29. Re4
{[%clk 0:00:13.8]} 29... Qd5 {[%clk 0:01:09.1]} 30. Ne5 {[%clk 0:00:09.2]} 30...
Qxc6 {[%clk 0:01:05]} 31. Nxc6 {[%clk 0:00:10.1]} 31... a5 {[%clk 0:01:01.5]}
32. c4 {[%clk 0:00:09.2]} 32... a4 {[%clk 0:01:00.8]} 33. Re3 {[%clk 0:00:08.1]}
33... Ra8 {[%clk 0:00:59.5]} 34. Ra3 {[%clk 0:00:08]} 34... Kh7 {[%clk
0:00:54.4]} 35. g3 {[%clk 0:00:05.1]} 35... Rf5 {[%clk 0:00:53.1]} 36. Ne5
{[%clk 0:00:04.3]} 36... Rxh5 {[%clk 0:00:49.3]} 37. Kg2 {[%clk 0:00:04.4]}
37... Rxe5 {[%clk 0:00:49]} 38. dxe5 {[%clk 0:00:04.4]} 38... g5 {[%clk
0:00:49.2]} 39. Kf3 {[%clk 0:00:04.2]} 39... Kg6 {[%clk 0:00:49.6]} 40. Ke4
{[%clk 0:00:04.5]} 40... h5 {[%clk 0:00:47.7]} 41. Kd4 {[%clk 0:00:04.5]} 41...
h4 {[%clk 0:00:46.6]} 42. gxh4 {[%clk 0:00:05.4]} 42... gxh4 {[%clk 0:00:46.6]}
43. Kc3 {[%clk 0:00:05.9]} 43... h3 {[%clk 0:00:45.6]} 44. Kb4 {[%clk
0:00:06.4]} 44... h2 {[%clk 0:00:40.5]} 45. Ra1 {[%clk 0:00:05.3]} 45... a3
{[%clk 0:00:39.9]} 46. Kb3 {[%clk 0:00:05.8]} 46... a2 {[%clk 0:00:40.3]} 47.
Kb2 {[%clk 0:00:05.5]} 47... h1=Q {[%clk 0:00:38.6]} 48. Rxh1 {[%clk 0:00:05]}
48... a1=Q+ {[%clk 0:00:38.6]} 49. Rxa1 {[%clk 0:00:05.5]} 49... Rxa1 {[%clk
0:00:38.4]} 50. Kxa1 {[%clk 0:00:06.4]} 50... Kf5 {[%clk 0:00:38.6]} 51. Kb2
{[%clk 0:00:07.3]} 51... Kxe5 {[%clk 0:00:39]} 52. Kb3 {[%clk 0:00:08.2]} 52...
Kd4 {[%clk 0:00:39.2]} 53. Kb4 {[%clk 0:00:09.1]} 53... e5 {[%clk 0:00:39.7]}
54. Kb5 {[%clk 0:00:10]} 54... e4 {[%clk 0:00:38.6]} 55. Kxb6 {[%clk 0:00:10.9]}
55... Kxc4 {[%clk 0:00:38.9]} 0-1